Workbook

Sheet h2h
A4: Sportpunter's 2013 afl player based bets | I4: 2
K5: AFL Bet Calculator
K6: Version 2.31
A9: Bank Balance: | B9: 1000 | E9: 1
A10: Kelly Fractional: 1/ | B10: 4
A12: Team1 | B12: Team2 | C12: Probability (Team1) | D12: Probability (Team2) | E12: Odds1 | F12: Odds2 | G12: Bet1 | H12: Bet2
A13: Carlton | B13: Brisbane | C13: 0.568 | D13: =IF(C13="","",1-C13) -> 0.432 | E13: 5 | F13: 5 | G13: =IF(OR(C13="",F13=""),"",IF((E13*C13-1)>0.05,$B$9/$B$10*(E13*C13-1)/(E13-1),0)) -> 115 | H13: =IF(OR(C13="",F13=""),"",IF((F13*D13-1)>0.05,$B$9/$B$10*(F13*D13-1)/(F13-1),0)) -> 72.5
D14: =IF(C14="","",1-C14) ->  | E14: 2 | F14: 2 | G14: =IF(OR(C14="",F14=""),"",IF((E14*C14-1)>0.05,$B$9/$B$10*(E14*C14-1)/(E14-1),0)) ->  | H14: =IF(OR(C14="",F14=""),"",IF((F14*D14-1)>0.05,$B$9/$B$10*(F14*D14-1)/(F14-1),0)) -> 
G21: =IF(OR(C21="",F21=""),"",IF((E21*C21-1)>0.05,$B$9/$B$10*(E21*C21-1)/(E21-1),0)) ->  | H21: =IF(OR(C21="",F21=""),"",IF((F21*D21-1)>0.05,$B$9/$B$10*(F21*D21-1)/(F21-1),0)) ->  | I21: =IF(G21="","",IF((G21*(1-#REF!)-1)>0.05,$B$9/$B$10*(G21*(1-#REF!)-1)/(G21-1),0)) -> 
H22: =IF(F22="","",IF((F22*#REF!-1)>0.05,$B$9/$B$10*(F22*#REF!-1)/(F22-1),0)) ->  | I22: =IF(G22="","",IF((G22*(1-#REF!)-1)>0.05,$B$9/$B$10*(G22*(1-#REF!)-1)/(G22-1),0)) -> 
H23: =IF(F23="","",IF((F23*#REF!-1)>0.05,$B$9/$B$10*(F23*#REF!-1)/(F23-1),0)) ->  | I23: =IF(G23="","",IF((G23*(1-#REF!)-1)>0.05,$B$9/$B$10*(G23*(1-#REF!)-1)/(G23-1),0)) -> 
H24: =IF(F24="","",IF((F24*#REF!-1)>0.05,$B$9/$B$10*(F24*#REF!-1)/(F24-1),0)) ->  | I24: =IF(G24="","",IF((G24*(1-#REF!)-1)>0.05,$B$9/$B$10*(G24*(1-#REF!)-1)/(G24-1),0)) -> 

Sheet line
J1: Help:
J2: Sportpunter's AFL Line Calculator is a little different but twice as useful. Here we can enter the teams playing, the probability, the line given by the bookmaker and the associated odds and the calculator will work out the overlay and amount to bet based on your bank balance and kelly franctional. You may notice that the last game only has one bookmaker line and odds submitted which one can do, however the beauty of this program is that you can insert different lines and their associated odds from several bookmakers, and the program will tell you which option has the greatest overlay and suggested bet size.
A14: Bank Balance: | B14: 1000
A15: Kelly Fractional: 1/ | B15: 4
A17: Team1 | B17: Team2 | C17: Probability | D17: Line | E17: Odds1 | F17: Odds2 | G17: Expected | H17: Adj.Line | I17: Adj.Prob | J17: Overlay1 | K17: Overlay2 | L17: Bet1 | M17: Bet2
A18: Carlton | B18: Brisbane | C18: 0.568 | D18: -8 | E18: 1.93 | F18: 1.95 | G18: =IF(OR(D18="",C18=""),"",LN(1/(1-C18)-1)/0.0447136) -> 6.121086884 | H18: =IF(G18<>"",G18+D18,"") -> -1.878913116 | I18: =IF(H18<>"",1-1/(1+EXP(0.0447136*H18)),"") -> 0.4790091026 | J18: =IF(I18="","",IF((I18*E18-1)>0,I18*E18-1,"")) ->  | K18: =IF(I18<>"",IF(((1-I18)*F18-1)>0,(1-I18)*F18-1,""),"") -> 0.01593224988 | L18: =IF(AND(J18<>"",D18<>"",J18=$N$18),$B$14/$B$15*J18/(E18-1),0) -> 0 | M18: =IF(AND(K18<>"",D18<>"",K18=$N$18),$B$14/$B$15*K18/(F18-1),0) -> 0 | N18: =MAX(J18:K22) -> 0.02680642475
C19: =IF(AND(C18<>"",D19<>""),$C$18,"") -> 0.568 | D19: -8.5 | E19: 1.98 | F19: 1.95 | G19: =IF(OR(D19="",C19=""),"",LN(1/(1-C19)-1)/0.0447136) -> 6.121086884 | H19: =IF(G19<>"",G19+D19,"") -> -2.378913116 | I19: =IF(H19<>"",1-1/(1+EXP(0.0447136*H19)),"") -> 0.4734326027 | J19: =IF(I19="","",IF((I19*E19-1)>0,I19*E19-1,"")) ->  | K19: =IF(I19<>"",IF(((1-I19)*F19-1)>0,(1-I19)*F19-1,""),"") -> 0.02680642475 | L19: =IF(AND(J19<>"",D19<>"",J19=$N$18),$B$14/$B$15*J19/(E19-1),0) -> 0 | M19: =IF(AND(K19<>"",D19<>"",K19=$N$18),$B$14/$B$15*K19/(F19-1),0) -> 7.054322302
C20: =IF(AND(C19<>"",D20<>""),$C$18,"") -> 0.568 | D20: -9 | E20: 1.9 | F20: 1.9 | G20: =IF(OR(D20="",C20=""),"",LN(1/(1-C20)-1)/0.0447136) -> 6.121086884 | H20: =IF(G20<>"",G20+D20,"") -> -2.878913116 | I20: =IF(H20<>"",1-1/(1+EXP(0.0447136*H20)),"") -> 0.467862723 | J20: =IF(I20="","",IF((I20*E20-1)>0,I20*E20-1,"")) ->  | K20: =IF(I20<>"",IF(((1-I20)*F20-1)>0,(1-I20)*F20-1,""),"") -> 0.01106082628 | L20: =IF(AND(J20<>"",D20<>"",J20=$N$18),$B$14/$B$15*J20/(E20-1),0) -> 0 | M20: =IF(AND(K20<>"",D20<>"",K20=$N$18),$B$14/$B$15*K20/(F20-1),0) -> 0
C21: =IF(AND(C20<>"",D21<>""),$C$18,"") ->  | G21: =IF(OR(D21="",C21=""),"",LN(1/(1-C21)-1)/0.0447136) ->  | H21: =IF(G21<>"",G21+D21,"") ->  | I21: =IF(H21<>"",1-1/(1+EXP(0.0447136*H21)),"") ->  | J21: =IF(I21="","",IF((I21*E21-1)>0,I21*E21-1,"")) ->  | K21: =IF(D21<>"",IF(((1-I21)*F21-1)>0,(1-I21)*F21-1,""),"") ->  | L21: =IF(AND(J21<>"",D21<>"",J21=$N$18),$B$14/$B$15*J21/(E21-1),0) -> 0 | M21: =IF(AND(K21<>"",D21<>"",K21=$N$18),$B$14/$B$15*K21/(F21-1),0) -> 0
D23: 5 | E23: 2 | F23: 1.8 | G23: =IF(OR(D23="",C23=""),"",LN(1/(1-C23)-1)/0.0447136) ->  | H23: =IF(G23<>"",G23+D23,"") ->  | I23: =IF(H23<>"",1-1/(1+EXP(0.0447136*H23)),"") ->  | J23: =IF(I23="","",IF((I23*E23-1)>0,I23*E23-1,"")) ->  | K23: =IF(I23<>"",IF(((1-I23)*F23-1)>0,(1-I23)*F23-1,""),"") ->  | L23: =IF(AND(J23<>"",D23<>"",J23=$N$23),$B$14/$B$15*J23/(E23-1),0) -> 0 | M23: =IF(AND(K23<>"",D23<>"",K23=$N$23),$B$14/$B$15*K23/(F23-1),0) -> 0 | N23: =MAX(J23:K27) -> 0
C24: =IF(AND(C23<>"",D24<>""),$C$23,"") ->  | D24: 6.5 | E24: 1.93 | F24: 2.06 | G24: =IF(OR(D24="",C24=""),"",LN(1/(1-C24)-1)/0.0447136) ->  | H24: =IF(G24<>"",G24+D24,"") ->  | I24: =IF(H24<>"",1-1/(1+EXP(0.0447136*H24)),"") ->  | J24: =IF(I24="","",IF((I24*E24-1)>0,I24*E24-1,"")) ->  | K24: =IF(I24<>"",IF(((1-I24)*F24-1)>0,(1-I24)*F24-1,""),"") ->  | L24: =IF(AND(J24<>"",D24<>"",J24=$N$23),$B$14/$B$15*J24/(E24-1),0) -> 0 | M24: =IF(AND(K24<>"",D24<>"",K24=$N$23),$B$14/$B$15*K24/(F24-1),0) -> 0
C25: =IF(AND(C24<>"",D25<>""),$C$23,"") ->  | D25: 7.5 | E25: 1.85 | F25: 1.95 | G25: =IF(OR(D25="",C25=""),"",LN(1/(1-C25)-1)/0.0447136) ->  | H25: =IF(G25<>"",G25+D25,"") ->  | I25: =IF(H25<>"",1-1/(1+EXP(0.0447136*H25)),"") ->  | J25: =IF(I25="","",IF((I25*E25-1)>0,I25*E25-1,"")) ->  | K25: =IF(I25<>"",IF(((1-I25)*F25-1)>0,(1-I25)*F25-1,""),"") ->  | L25: =IF(AND(J25<>"",D25<>"",J25=$N$23),$B$14/$B$15*J25/(E25-1),0) -> 0 | M25: =IF(AND(K25<>"",D25<>"",K25=$N$23),$B$14/$B$15*K25/(F25-1),0) -> 0
C26: =IF(AND(C25<>"",D26<>""),$C$23,"") ->  | G26: =IF(OR(D26="",C26=""),"",LN(1/(1-C26)-1)/0.0447136) ->  | H26: =IF(G26<>"",G26+D26,"") ->  | I26: =IF(H26<>"",1-1/(1+EXP(0.0447136*H26)),"") ->  | J26: =IF(I26="","",IF((I26*E26-1)>0,I26*E26-1,"")) ->  | K26: =IF(I26<>"",IF(((1-I26)*F26-1)>0,(1-I26)*F26-1,""),"") ->  | L26: =IF(AND(J26<>"",D26<>"",J26=$N$23),$B$14/$B$15*J26/(E26-1),0) -> 0 | M26: =IF(AND(K26<>"",D26<>"",K26=$N$23),$B$14/$B$15*K26/(F26-1),0) -> 0
D28: -10 | E28: 1.9 | F28: 1.9 | G28: =IF(OR(D28="",C28=""),"",LN(1/(1-C28)-1)/0.0447136) ->  | H28: =IF(G28<>"",G28+D28,"") ->  | I28: =IF(H28<>"",1-1/(1+EXP(0.0447136*H28)),"") ->  | J28: =IF(I28="","",IF((I28*E28-1)>0,I28*E28-1,"")) ->  | K28: =IF(I28="","",IF(((1-I28)*F28-1)>0,(1-I28)*F28-1,"")) ->  | L28: =IF(AND(J28<>"",D28<>"",J28=$N$28),$B$14/$B$15*J28/(E28-1),0) -> 0 | M28: =IF(AND(K28<>"",D28<>"",K28=$N$28),$B$14/$B$15*K28/(F28-1),0) -> 0 | N28: =MAX(J28:K32) -> 0
C29: =IF(AND(C28<>"",D29<>""),$C$28,"") ->  | D29: -10.5 | E29: 1.95 | F29: 2.03 | G29: =IF(OR(D29="",C29=""),"",LN(1/(1-C29)-1)/0.0447136) ->  | H29: =IF(G29<>"",G29+D29,"") ->  | I29: =IF(H29<>"",1-1/(1+EXP(0.0447136*H29)),"") ->  | J29: =IF(I29="","",IF((I29*E29-1)>0,I29*E29-1,"")) ->  | K29: =IF(I29="","",IF(((1-I29)*F29-1)>0,(1-I29)*F29-1,"")) ->  | L29: =IF(AND(J29<>"",D29<>"",J29=$N$28),$B$14/$B$15*J29/(E29-1),0) -> 0 | M29: =IF(AND(K29<>"",D29<>"",K29=$N$28),$B$14/$B$15*K29/(F29-1),0) -> 0
C30: =IF(AND(C29<>"",D30<>""),$C$28,"") ->  | D30: -11.5 | E30: 1.9 | F30: 1.9 | G30: =IF(OR(D30="",C30=""),"",LN(1/(1-C30)-1)/0.0447136) ->  | H30: =IF(G30<>"",G30+D30,"") ->  | I30: =IF(H30<>"",1-1/(1+EXP(0.0447136*H30)),"") ->  | J30: =IF(I30="","",IF((I30*E30-1)>0,I30*E30-1,"")) ->  | K30: =IF(I30="","",IF(((1-I30)*F30-1)>0,(1-I30)*F30-1,"")) ->  | L30: =IF(AND(J30<>"",D30<>"",J30=$N$28),$B$14/$B$15*J30/(E30-1),0) -> 0 | M30: =IF(AND(K30<>"",D30<>"",K30=$N$28),$B$14/$B$15*K30/(F30-1),0) -> 0
C31: =IF(AND(C30<>"",D31<>""),$C$28,"") ->  | D31: -12.5 | E31: 1.95 | F31: 1.8 | G31: =IF(OR(D31="",C31=""),"",LN(1/(1-C31)-1)/0.0447136) ->  | H31: =IF(G31<>"",G31+D31,"") ->  | I31: =IF(H31<>"",1-1/(1+EXP(0.0447136*H31)),"") ->  | J31: =IF(I31="","",IF((I31*E31-1)>0,I31*E31-1,"")) ->  | K31: =IF(I31="","",IF(((1-I31)*F31-1)>0,(1-I31)*F31-1,"")) ->  | L31: =IF(AND(J31<>"",D31<>"",J31=$N$28),$B$14/$B$15*J31/(E31-1),0) -> 0 | M31: =IF(AND(K31<>"",D31<>"",K31=$N$28),$B$14/$B$15*K31/(F31-1),0) -> 0
D33: 6 | E33: 1.9 | F33: 1.9 | G33: =IF(OR(D33="",C33=""),"",LN(1/(1-C33)-1)/0.0447136) ->  | H33: =IF(G33<>"",G33+D33,"") ->  | I33: =IF(H33<>"",1-1/(1+EXP(0.0447136*H33)),"") ->  | J33: =IF(I33="","",IF((I33*E33-1)>0,I33*E33-1,"")) ->  | K33: =IF(I33="","",IF(((1-I33)*F33-1)>0,(1-I33)*F33-1,"")) ->  | L33: =IF(AND(J33<>"",D33<>"",J33=$N$33),$B$14/$B$15*J33/(E33-1),0) -> 0 | M33: =IF(AND(K33<>"",D33<>"",K33=$N$33),$B$14/$B$15*K33/(F33-1),0) -> 0 | N33: =MAX(J33:K37) -> 0
C34: =IF(AND(C33<>"",D34<>""),$C$33,"") ->  | D34: 6.5 | E34: 1.95 | F34: 1.95 | G34: =IF(OR(D34="",C34=""),"",LN(1/(1-C34)-1)/0.0447136) ->  | H34: =IF(G34<>"",G34+D34,"") ->  | I34: =IF(H34<>"",1-1/(1+EXP(0.0447136*H34)),"") ->  | J34: =IF(I34="","",IF((I34*E34-1)>0,I34*E34-1,"")) ->  | K34: =IF(I34="","",IF(((1-I34)*F34-1)>0,(1-I34)*F34-1,"")) ->  | L34: =IF(AND(J34<>"",D34<>"",J34=$N$33),$B$14/$B$15*J34/(E34-1),0) -> 0 | M34: =IF(AND(K34<>"",D34<>"",K34=$N$33),$B$14/$B$15*K34/(F34-1),0) -> 0
C35: =IF(AND(C34<>"",D35<>""),$C$33,"") ->  | D35: 7 | E35: 1.9 | F35: 1.9 | G35: =IF(OR(D35="",C35=""),"",LN(1/(1-C35)-1)/0.0447136) ->  | H35: =IF(G35<>"",G35+D35,"") ->  | I35: =IF(H35<>"",1-1/(1+EXP(0.0447136*H35)),"") ->  | J35: =IF(I35="","",IF((I35*E35-1)>0,I35*E35-1,"")) ->  | K35: =IF(I35="","",IF(((1-I35)*F35-1)>0,(1-I35)*F35-1,"")) ->  | L35: =IF(AND(J35<>"",D35<>"",J35=$N$33),$B$14/$B$15*J35/(E35-1),0) -> 0 | M35: =IF(AND(K35<>"",D35<>"",K35=$N$33),$B$14/$B$15*K35/(F35-1),0) -> 0
C36: =IF(AND(C35<>"",D36<>""),$C$33,"") ->  | D36: 7.5 | E36: 1.85 | F36: 1.85 | G36: =IF(OR(D36="",C36=""),"",LN(1/(1-C36)-1)/0.0447136) ->  | H36: =IF(G36<>"",G36+D36,"") ->  | I36: =IF(H36<>"",1-1/(1+EXP(0.0447136*H36)),"") ->  | J36: =IF(I36="","",IF((I36*E36-1)>0,I36*E36-1,"")) ->  | K36: =IF(I36="","",IF(((1-I36)*F36-1)>0,(1-I36)*F36-1,"")) ->  | L36: =IF(AND(J36<>"",D36<>"",J36=$N$33),$B$14/$B$15*J36/(E36-1),0) -> 0 | M36: =IF(AND(K36<>"",D36<>"",K36=$N$33),$B$14/$B$15*K36/(F36-1),0) -> 0
D38: -4.5 | E38: 2 | F38: 2 | G38: =IF(OR(D38="",C38=""),"",LN(1/(1-C38)-1)/0.0447136) ->  | H38: =IF(G38<>"",G38+D38,"") ->  | I38: =IF(H38<>"",1-1/(1+EXP(0.0447136*H38)),"") ->  | J38: =IF(I38="","",IF((I38*E38-1)>0,I38*E38-1,"")) ->  | K38: =IF(I38="","",IF(((1-I38)*F38-1)>0,(1-I38)*F38-1,"")) ->  | L38: =IF(AND(J38<>"",D38<>"",J38=$N$38),$B$14/$B$15*J38/(E38-1),0) -> 0 | M38: =IF(AND(K38<>"",D38<>"",K38=$N$38),$B$14/$B$15*K38/(F38-1),0) -> 0 | N38: =MAX(J38:K42) -> 0
C39: =IF(AND(C38<>"",D39<>""),$C$38,"") ->  | D39: -5 | E39: 1.95 | F39: 1.95 | G39: =IF(OR(D39="",C39=""),"",LN(1/(1-C39)-1)/0.0447136) ->  | H39: =IF(G39<>"",G39+D39,"") ->  | I39: =IF(H39<>"",1-1/(1+EXP(0.0447136*H39)),"") ->  | J39: =IF(I39="","",IF((I39*E39-1)>0,I39*E39-1,"")) ->  | K39: =IF(I39="","",IF(((1-I39)*F39-1)>0,(1-I39)*F39-1,"")) ->  | L39: =IF(AND(J39<>"",D39<>"",J39=$N$38),$B$14/$B$15*J39/(E39-1),0) -> 0 | M39: =IF(AND(K39<>"",D39<>"",K39=$N$38),$B$14/$B$15*K39/(F39-1),0) -> 0
C40: =IF(AND(C39<>"",D40<>""),$C$38,"") ->  | D40: -6.5 | E40: 1.9 | F40: 1.8 | G40: =IF(OR(D40="",C40=""),"",LN(1/(1-C40)-1)/0.0447136) ->  | H40: =IF(G40<>"",G40+D40,"") ->  | I40: =IF(H40<>"",1-1/(1+EXP(0.0447136*H40)),"") ->  | J40: =IF(I40="","",IF((I40*E40-1)>0,I40*E40-1,"")) ->  | K40: =IF(I40="","",IF(((1-I40)*F40-1)>0,(1-I40)*F40-1,"")) ->  | L40: =IF(AND(J40<>"",D40<>"",J40=$N$38),$B$14/$B$15*J40/(E40-1),0) -> 0 | M40: =IF(AND(K40<>"",D40<>"",K40=$N$38),$B$14/$B$15*K40/(F40-1),0) -> 0
C41: =IF(AND(C40<>"",D41<>""),$C$38,"") ->  | G41: =IF(OR(D41="",C41=""),"",LN(1/(1-C41)-1)/0.0447136) ->  | H41: =IF(G41<>"",G41+D41,"") ->  | I41: =IF(H41<>"",1-1/(1+EXP(0.0447136*H41)),"") ->  | J41: =IF(I41="","",IF((I41*E41-1)>0,I41*E41-1,"")) ->  | K41: =IF(I41="","",IF(((1-I41)*F41-1)>0,(1-I41)*F41-1,"")) ->  | L41: =IF(AND(J41<>"",D41<>"",J41=$N$38),$B$14/$B$15*J41/(E41-1),0) -> 0 | M41: =IF(AND(K41<>"",D41<>"",K41=$N$38),$B$14/$B$15*K41/(F41-1),0) -> 0
D43: -2 | E43: 1.9 | F43: 1.9 | G43: =IF(OR(D43="",C43=""),"",LN(1/(1-C43)-1)/0.0447136) ->  | H43: =IF(G43<>"",G43+D43,"") ->  | I43: =IF(H43<>"",1-1/(1+EXP(0.0447136*H43)),"") ->  | J43: =IF(I43="","",IF((I43*E43-1)>0,I43*E43-1,"")) ->  | K43: =IF(I43="","",IF(((1-I43)*F43-1)>0,(1-I43)*F43-1,"")) ->  | L43: =IF(AND(J43<>"",D43<>"",J43=$N$43),$B$14/$B$15*J43/(E43-1),0) -> 0 | M43: =IF(AND(K43<>"",D43<>"",K43=$N$43),$B$14/$B$15*K43/(F43-1),0) -> 0 | N43: =MAX(J43:K46) -> 0
C44: =IF(AND(C43<>"",D44<>""),$C$43,"") ->  | G44: =IF(OR(D44="",C44=""),"",LN(1/(1-C44)-1)/0.0447136) ->  | H44: =IF(G44<>"",G44+D44,"") ->  | I44: =IF(H44<>"",1-1/(1+EXP(0.0447136*H44)),"") ->  | J44: =IF(I44="","",IF((I44*E44-1)>0,I44*E44-1,"")) ->  | K44: =IF(I44="","",IF(((1-I44)*F44-1)>0,(1-I44)*F44-1,"")) ->  | L44: =IF(AND(J44<>"",D44<>"",J44=$N$43),$B$14/$B$15*J44/(E44-1),0) -> 0 | M44: =IF(AND(K44<>"",D44<>"",K44=$N$43),$B$14/$B$15*K44/(F44-1),0) -> 0
C45: =IF(AND(C44<>"",D45<>""),$C$43,"") ->  | G45: =IF(OR(D45="",C45=""),"",LN(1/(1-C45)-1)/0.0447136) ->  | H45: =IF(G45<>"",G45+D45,"") ->  | I45: =IF(H45<>"",1-1/(1+EXP(0.0447136*H45)),"") ->  | J45: =IF(I45="","",IF((I45*E45-1)>0,I45*E45-1,"")) ->  | K45: =IF(I45="","",IF(((1-I45)*F45-1)>0,(1-I45)*F45-1,"")) ->  | L45: =IF(AND(J45<>"",D45<>"",J45=$N$43),$B$14/$B$15*J45/(E45-1),0) -> 0 | M45: =IF(AND(K45<>"",D45<>"",K45=$N$43),$B$14/$B$15*K45/(F45-1),0) -> 0
C46: =IF(AND(C45<>"",D46<>""),$C$43,"") ->  | G46: =IF(OR(D46="",C46=""),"",LN(1/(1-C46)-1)/0.0447136) ->  | H46: =IF(G46<>"",G46+D46,"") ->  | I46: =IF(H46<>"",1-1/(1+EXP(0.0447136*H46)),"") ->  | J46: =IF(I46="","",IF((I46*E46-1)>0,I46*E46-1,"")) ->  | K46: =IF(I46="","",IF(((1-I46)*F46-1)>0,(1-I46)*F46-1,"")) ->  | L46: =IF(AND(J46<>"",D46<>"",J46=$N$43),$B$14/$B$15*J46/(E46-1),0) -> 0 | M46: =IF(AND(K46<>"",D46<>"",K46=$N$43),$B$14/$B$15*K46/(F46-1),0) -> 0
D48: -2 | E48: 1.9 | F48: 1.9 | G48: =IF(OR(D48="",C48=""),"",LN(1/(1-C48)-1)/0.0447136) ->  | H48: =IF(G48<>"",G48+D48,"") ->  | I48: =IF(H48<>"",1-1/(1+EXP(0.0447136*H48)),"") ->  | J48: =IF(I48="","",IF((I48*E48-1)>0,I48*E48-1,"")) ->  | K48: =IF(I48="","",IF(((1-I48)*F48-1)>0,(1-I48)*F48-1,"")) ->  | L48: =IF(AND(J48<>"",D48<>"",J48=$N$48),$B$14/$B$15*J48/(E48-1),0) -> 0 | M48: =IF(AND(K48<>"",D48<>"",K48=$N$48),$B$14/$B$15*K48/(F48-1),0) -> 0 | N48: =MAX(J48:K51) -> 0
C49: =IF(AND(C48<>"",D49<>""),$C$48,"") ->  | G49: =IF(OR(D49="",C49=""),"",LN(1/(1-C49)-1)/0.0447136) ->  | H49: =IF(G49<>"",G49+D49,"") ->  | I49: =IF(H49<>"",1-1/(1+EXP(0.0447136*H49)),"") ->  | J49: =IF(I49="","",IF((I49*E49-1)>0,I49*E49-1,"")) ->  | K49: =IF(I49="","",IF(((1-I49)*F49-1)>0,(1-I49)*F49-1,"")) ->  | L49: =IF(AND(J49<>"",D49<>"",J49=$N$48),$B$14/$B$15*J49/(E49-1),0) -> 0 | M49: =IF(AND(K49<>"",D49<>"",K49=$N$48),$B$14/$B$15*K49/(F49-1),0) -> 0
C50: =IF(AND(C49<>"",D50<>""),$C$48,"") ->  | G50: =IF(OR(D50="",C50=""),"",LN(1/(1-C50)-1)/0.0447136) ->  | H50: =IF(G50<>"",G50+D50,"") ->  | I50: =IF(H50<>"",1-1/(1+EXP(0.0447136*H50)),"") ->  | J50: =IF(I50="","",IF((I50*E50-1)>0,I50*E50-1,"")) ->  | K50: =IF(I50="","",IF(((1-I50)*F50-1)>0,(1-I50)*F50-1,"")) ->  | L50: =IF(AND(J50<>"",D50<>"",J50=$N$48),$B$14/$B$15*J50/(E50-1),0) -> 0 | M50: =IF(AND(K50<>"",D50<>"",K50=$N$48),$B$14/$B$15*K50/(F50-1),0) -> 0
C51: =IF(AND(C50<>"",D51<>""),$C$48,"") ->  | G51: =IF(OR(D51="",C51=""),"",LN(1/(1-C51)-1)/0.0447136) ->  | H51: =IF(G51<>"",G51+D51,"") ->  | I51: =IF(H51<>"",1-1/(1+EXP(0.0447136*H51)),"") ->  | J51: =IF(I51="","",IF((I51*E51-1)>0,I51*E51-1,"")) ->  | K51: =IF(I51="","",IF(((1-I51)*F51-1)>0,(1-I51)*F51-1,"")) ->  | L51: =IF(AND(J51<>"",D51<>"",J51=$N$48),$B$14/$B$15*J51/(E51-1),0) -> 0 | M51: =IF(AND(K51<>"",D51<>"",K51=$N$48),$B$14/$B$15*K51/(F51-1),0) -> 0
D53: -2 | E53: 1.9 | F53: 1.9 | G53: =IF(OR(D53="",C53=""),"",LN(1/(1-C53)-1)/0.0447136) ->  | H53: =IF(G53<>"",G53+D53,"") ->  | I53: =IF(H53<>"",1-1/(1+EXP(0.0447136*H53)),"") ->  | J53: =IF(I53="","",IF((I53*E53-1)>0,I53*E53-1,"")) ->  | K53: =IF(I53="","",IF(((1-I53)*F53-1)>0,(1-I53)*F53-1,"")) ->  | L53: =IF(AND(J53<>"",D53<>"",J53=$N$53),$B$14/$B$15*J53/(E53-1),0) -> 0 | M53: =IF(AND(K53<>"",D53<>"",K53=$N$53),$B$14/$B$15*K53/(F53-1),0) -> 0 | N53: =MAX(J53:K56) -> 0
C54: =IF(AND(C53<>"",D54<>""),$C$53,"") ->  | G54: =IF(OR(D54="",C54=""),"",LN(1/(1-C54)-1)/0.0447136) ->  | H54: =IF(G54<>"",G54+D54,"") ->  | I54: =IF(H54<>"",1-1/(1+EXP(0.0447136*H54)),"") ->  | J54: =IF(I54="","",IF((I54*E54-1)>0,I54*E54-1,"")) ->  | K54: =IF(I54="","",IF(((1-I54)*F54-1)>0,(1-I54)*F54-1,"")) ->  | L54: =IF(AND(J54<>"",D54<>"",J54=$N$53),$B$14/$B$15*J54/(E54-1),0) -> 0 | M54: =IF(AND(K54<>"",D54<>"",K54=$N$53),$B$14/$B$15*K54/(F54-1),0) -> 0
C55: =IF(AND(C54<>"",D55<>""),$C$53,"") ->  | G55: =IF(OR(D55="",C55=""),"",LN(1/(1-C55)-1)/0.0447136) ->  | H55: =IF(G55<>"",G55+D55,"") ->  | I55: =IF(H55<>"",1-1/(1+EXP(0.0447136*H55)),"") ->  | J55: =IF(I55="","",IF((I55*E55-1)>0,I55*E55-1,"")) ->  | K55: =IF(I55="","",IF(((1-I55)*F55-1)>0,(1-I55)*F55-1,"")) ->  | L55: =IF(AND(J55<>"",D55<>"",J55=$N$53),$B$14/$B$15*J55/(E55-1),0) -> 0 | M55: =IF(AND(K55<>"",D55<>"",K55=$N$53),$B$14/$B$15*K55/(F55-1),0) -> 0
C56: =IF(AND(C55<>"",D56<>""),$C$53,"") ->  | G56: =IF(OR(D56="",C56=""),"",LN(1/(1-C56)-1)/0.0447136) ->  | H56: =IF(G56<>"",G56+D56,"") ->  | I56: =IF(H56<>"",1-1/(1+EXP(0.0447136*H56)),"") ->  | J56: =IF(I56="","",IF((I56*E56-1)>0,I56*E56-1,"")) ->  | K56: =IF(I56="","",IF(((1-I56)*F56-1)>0,(1-I56)*F56-1,"")) ->  | L56: =IF(AND(J56<>"",D56<>"",J56=$N$53),$B$14/$B$15*J56/(E56-1),0) -> 0 | M56: =IF(AND(K56<>"",D56<>"",K56=$N$53),$B$14/$B$15*K56/(F56-1),0) -> 0
D58: =2 -> 2 | E58: 1.9 | F58: 1.9 | G58: =IF(OR(D58="",C58=""),"",LN(1/(1-C58)-1)/0.0447136) ->  | H58: =IF(G58<>"",G58+D58,"") ->  | I58: =IF(H58<>"",1-1/(1+EXP(0.0447136*H58)),"") ->  | J58: =IF(I58="","",IF((I58*E58-1)>0,I58*E58-1,"")) ->  | K58: =IF(I58="","",IF(((1-I58)*F58-1)>0,(1-I58)*F58-1,"")) ->  | L58: =IF(AND(J58<>"",D58<>"",J58=$N$58),$B$14/$B$15*J58/(E58-1),0) -> 0 | M58: =IF(AND(K58<>"",D58<>"",K58=$N$58),$B$14/$B$15*K58/(F58-1),0) -> 0 | N58: =MAX(J58:K61) -> 0
C59: =IF(AND(C58<>"",D59<>""),$C$58,"") ->  | G59: =IF(OR(D59="",C59=""),"",LN(1/(1-C59)-1)/0.0447136) ->  | H59: =IF(G59<>"",G59+D59,"") ->  | I59: =IF(H59<>"",1-1/(1+EXP(0.0447136*H59)),"") ->  | J59: =IF(I59="","",IF((I59*E59-1)>0,I59*E59-1,"")) ->  | K59: =IF(I59="","",IF(((1-I59)*F59-1)>0,(1-I59)*F59-1,"")) ->  | L59: =IF(AND(J59<>"",D59<>"",J59=$N$58),$B$14/$B$15*J59/(E59-1),0) -> 0 | M59: =IF(AND(K59<>"",D59<>"",K59=$N$58),$B$14/$B$15*K59/(F59-1),0) -> 0
C60: =IF(AND(C59<>"",D60<>""),$C$58,"") ->  | G60: =IF(OR(D60="",C60=""),"",LN(1/(1-C60)-1)/0.0447136) ->  | H60: =IF(G60<>"",G60+D60,"") ->  | I60: =IF(H60<>"",1-1/(1+EXP(0.0447136*H60)),"") ->  | J60: =IF(I60="","",IF((I60*E60-1)>0,I60*E60-1,"")) ->  | K60: =IF(I60="","",IF(((1-I60)*F60-1)>0,(1-I60)*F60-1,"")) ->  | L60: 0 | M60: 0
C61: =IF(AND(C60<>"",D61<>""),$C$58,"") ->  | G61: =IF(OR(D61="",C61=""),"",LN(1/(1-C61)-1)/0.0447136) ->  | H61: =IF(G61<>"",G61+D61,"") ->  | I61: =IF(H61<>"",1-1/(1+EXP(0.0447136*H61)),"") ->  | J61: =IF(I61="","",IF((I61*E61-1)>0,I61*E61-1,"")) ->  | K61: =IF(I61="","",IF(((1-I61)*F61-1)>0,(1-I61)*F61-1,"")) ->  | L61: 0 | M61: 0
B69: TRUE | C69: FALSE
B70: FALSE | C70: FALSE
B71: FALSE | C71: TRUE
B72: FALSE | C72: FALSE
B74: FALSE | C74: TRUE
B75: FALSE | C75: FALSE
B76: FALSE | C76: TRUE

Sheet margin
A9: Bank Balance: | B9: 1000
A10: Kelly Fractional: 1/ | B10: 4
C11: Probability | H11: Odds | M11: $Bet
A12: Team1 | B12: Team2 | C12: T1>39 | D12: T1<40 | E12: Draw | F12: T2<40 | G12: T2>39 | H12: T1>39 | I12: T1<40 | J12: Draw | K12: T2<40 | L12: T2>39 | M12: T1>39 | N12: T1<40 | O12: Draw | P12: T2<40 | Q12: T2>39
A13: Carlton | B13: Brisbane | E13: 1 | H13: 3 | I13: 3 | J13: 3 | K13: 3 | L13: 3 | M13: =IF(C13="","",IF((H13*C13-1)>0.05,$B$9/$B$10*(H13*C13-1)/(H13-1),0)) ->  | N13: =IF(D13="","",IF((I13*D13-1)>0.05,$B$9/$B$10*(I13*D13-1)/(I13-1),0)) ->  | O13: =IF(E13="","",IF((J13*E13-1)>0.05,$B$9/$B$10*(J13*E13-1)/(J13-1),0)) -> 250 | P13: =IF(F13="","",IF((K13*F13-1)>0.05,$B$9/$B$10*(K13*F13-1)/(K13-1),0)) ->  | Q13: =IF(G13="","",IF((L13*G13-1)>0.05,$B$9/$B$10*(L13*G13-1)/(L13-1),0)) -> 
M14: =IF(C14="","",IF((H14*C14-1)>0.05,$B$9/$B$10*(H14*C14-1)/(H14-1),0)) ->  | N14: =IF(D14="","",IF((I14*D14-1)>0.05,$B$9/$B$10*(I14*D14-1)/(I14-1),0)) ->  | O14: =IF(E14="","",IF((J14*E14-1)>0.05,$B$9/$B$10*(J14*E14-1)/(J14-1),0)) ->  | P14: =IF(F14="","",IF((K14*F14-1)>0.05,$B$9/$B$10*(K14*F14-1)/(K14-1),0)) ->  | Q14: =IF(G14="","",IF((L14*G14-1)>0.05,$B$9/$B$10*(L14*G14-1)/(L14-1),0)) -> 
M19: =IF(C19="","",IF((H19*C19-1)>0.05,$B$9/$B$10*(H19*C19-1)/(H19-1),0)) ->  | N19: =IF(D19="","",IF((I19*D19-1)>0.05,$B$9/$B$10*(I19*D19-1)/(I19-1),0)) ->  | O19: =IF(E19="","",IF((J19*E19-1)>0.05,$B$9/$B$10*(J19*E19-1)/(J19-1),0)) ->  | P19: =IF(F19="","",IF((K19*F19-1)>0.05,$B$9/$B$10*(K19*F19-1)/(K19-1),0)) ->  | Q19: =IF(G19="","",IF((L19*G19-1)>0.05,$B$9/$B$10*(L19*G19-1)/(L19-1),0)) -> 
A21: Sydney | B21: Gold Coast | E21: 1 | O21: 0
F23: =IF(D23="","",IF((D23*C23-1)>0.05,$B$9/$B$10*(D23*C23-1)/(D23-1),0)) ->  | G23: =IF(E23="","",IF((E23*(1-C23)-1)>0.05,$B$9/$B$10*(E23*(1-C23)-1)/(E23-1),0)) -> 

Sheet totals
F2: Note totals will be given out one hour before start time for each match.
F3: When matches are scheduled to start at close times to each other,
G4: totals will be issued 1 hour before the first scheduled match
F5: Please see the AFL members only forum each week to see the schedule of totals predictions
A9: Bank Balance: | B9: 1000 | E9: 1
A10: Kelly Fractional: 1/ | B10: 4
A12: Team1 | B12: Team2 | C12: Exp.Total | D12: Adj.Total | E12: TotalsLine | F12: ProbOver | G12: OddsOver | H12: OddsUnder | I12: $BetOver | J12: $BetUnder
A13: Carlton | B13: Brisbane | D13: -9 | E13: 168.5 | F13: =IF(C13="","",1-NORMDIST(E13,C13+D13,32.5,TRUE)) ->  | G13: 2 | H13: 2 | I13: =IF(OR(C13="",E13=""),"",IF((G13*F13-1)>0.05,(G13*F13-1)*$B$9/$B$10/(G13-1),0)) ->  | J13: =IF(OR(C13="",E13=""),"",IF((H13*(1-F13)-1)>0.05,(H13*(1-F13)-1)*$B$9/$B$10/(H13-1),0)) -> 
F14: =IF(C14="","",1-NORMDIST(E14,C14+D14,32.5,TRUE)) ->  | G14: =IF(OR(C14="",F14=""),"",IF((E14*C14-1)>0.05,$B$9/$B$10*(E14*C14-1)/(E14-1),0)) ->  | H14: =IF(OR(C14="",F14=""),"",IF((F14*D14-1)>0.05,$B$9/$B$10*(F14*D14-1)/(F14-1),0)) ->  | I14: =IF(OR(C14="",E14=""),"",IF((G14*F14-1)>0.05,(G14*F14-1)*$B$9/$B$10/(G14-1),0)) ->  | J14: =IF(OR(C14="",E14=""),"",IF((H14*(1-F14)-1)>0.05,(H14*(1-F14)-1)*$B$9/$B$10/(H14-1),0)) -> 
G21: =IF(OR(C21="",F21=""),"",IF((E21*C21-1)>0.05,$B$9/$B$10*(E21*C21-1)/(E21-1),0)) ->  | H21: =IF(OR(C21="",F21=""),"",IF((F21*D21-1)>0.05,$B$9/$B$10*(F21*D21-1)/(F21-1),0)) -> 
H22: =IF(F22="","",IF((F22*#REF!-1)>0.05,$B$9/$B$10*(F22*#REF!-1)/(F22-1),0)) ->  | I22: =IF(G22="","",IF((G22*(1-#REF!)-1)>0.05,$B$9/$B$10*(G22*(1-#REF!)-1)/(G22-1),0)) -> 
H23: =IF(F23="","",IF((F23*#REF!-1)>0.05,$B$9/$B$10*(F23*#REF!-1)/(F23-1),0)) ->  | I23: =IF(G23="","",IF((G23*(1-#REF!)-1)>0.05,$B$9/$B$10*(G23*(1-#REF!)-1)/(G23-1),0)) -> 
H24: =IF(F24="","",IF((F24*#REF!-1)>0.05,$B$9/$B$10*(F24*#REF!-1)/(F24-1),0)) ->  | I24: =IF(G24="","",IF((G24*(1-#REF!)-1)>0.05,$B$9/$B$10*(G24*(1-#REF!)-1)/(G24-1),0)) -> 

Sheet futures
A9: Bank Balance: | B9: 1000
A10: Kelly Fractional: 1/ | B10: 4
B12: Prob | E12: Odds Bet | H12: Odds Lay | K12: $Bet | N12: $Lay
A13: Team1 | B13: Premiers | D13: Last | E13: Premiers | F13: Top 8 | G13: Last | H13: Premiers | I13: Top 8 | J13: Last | K13: Premiers | L13: Top 8 | M13: Last | N13: Premiers | O13: Top 8 | P13: Last
E14: 3 | F14: 3 | G14: 3 | H14: 2 | I14: 2 | J14: 2 | K14: =IF(E14="","",IF((E14*B14-1)>0.05,$B$9/$B$10*(E14*B14-1)/(E14-1),0)) -> 0 | L14: =IF(F14="","",IF((F14*C14-1)>0.05,$B$9/$B$10*(F14*C14-1)/(F14-1),0)) -> 0 | M14: =IF(G14="","",IF((G14*D14-1)>0.05,$B$9/$B$10*(G14*D14-1)/(G14-1),0)) -> 0 | N14: =IF((0.95/(H14-1)+1)="","",IF(((0.95/(H14-1)+1)*(1-B14)-1)>0.05,($B$9/$B$10*((0.95/(H14-1)+1)*(1-B14)-1)/((0.95/(H14-1)+1)-1))/(H14-1),"")) -> 250 | O14: =IF((0.95/(I14-1)+1)="","",IF(((0.95/(I14-1)+1)*(1-C14)-1)>0.05,($B$9/$B$10*((0.95/(I14-1)+1)*(1-C14)-1)/((0.95/(I14-1)+1)-1))/(I14-1),"")) -> 250 | P14: 250
K15: =IF(E15="","",IF((E15*B15-1)>0.05,$B$9/$B$10*(E15*B15-1)/(E15-1),0)) ->  | N15: =IF((0.95/(H15-1)+1)="","",IF(((0.95/(H15-1)+1)*(1-B15)-1)>0.05,($B$9/$B$10*((0.95/(H15-1)+1)*(1-B15)-1)/((0.95/(H15-1)+1)-1))/(H15-1),"")) -> 
K27: =IF(E27="","",IF((E27*B27-1)>0.05,$B$9/$B$10*(E27*B27-1)/(E27-1),0)) ->  | N27: =IF((0.95/(H27-1)+1)="","",IF(((0.95/(H27-1)+1)*(1-B27)-1)>0.05,($B$9/$B$10*((0.95/(H27-1)+1)*(1-B27)-1)/((0.95/(H27-1)+1)-1))/(H27-1),"")) -> 
